bitfinex/quotes_BTCUSD_20240712
["timestamp","ask_amount","ask_price","bid_price","bid_amount"]
[1720802729949,1.81817252,58223.0,58222.0,0.0117614]
[1720802730164,2.9555469,58223.0,58222.0,0.0117614]
[1720802730387,2.95574555,58223.0,58222.0,0.0117614]
[1720802731608,3.13684555,58223.0,58222.0,0.0117614]
[1720802731807,0.57070752,58219.0,58218.0,0.0059045]
[1720802732197,2.88991113,58219.0,58218.0,0.0059045]
[1720802732598,1.91030552,58212.0,58211.0,0.002]
[1720802732757,2.29486184,58212.0,58211.0,0.002]
[1720802733163,2.91953284,58212.0,58211.0,0.002]
[1720802733365,3.07910179,58212.0,58211.0,0.002]
[1720802733567,3.14249217,58212.0,58211.0,0.002]
[1720802734177,3.1010544,58212.0,58211.0,0.002]
[1720802735009,2.9010544,58212.0,58211.0,0.002]
[1720802735183,3.1010544,58212.0,58211.0,0.002]
[1720802735667,2.9010544,58212.0,58211.0,0.002]
[1720802736076,3.1010544,58212.0,58211.0,0.002]
[1720802736250,2.9010544,58212.0,58211.0,0.002]
[1720802736450,1.73680387,58212.0,58211.0,0.002]
[1720802736657,2.02008145,58212.0,58211.0,0.002]
[1720802736856,2.03074688,58212.0,58211.0,0.002]
[1720802737272,0.32137478,58212.0,58211.0,0.002]
[1720802737494,0.22137478,58212.0,58211.0,0.1463]
[1720802737821,0.00306353,58218.0,58212.0,0.171785]
[1720802737822,0.14742104,58213.0,58212.0,0.171785]
[1720802738033,0.22138395,58213.0,58212.0,0.18620625]
[1720802738235,0.21070752,58213.0,58212.0,0.01442125]
[1720802738592,0.21070752,58213.0,58212.0,0.18620625]
[1720802738949,0.14742104,58213.0,58212.0,0.18620625]
[1720802739223,0.21070752,58213.0,58212.0,0.18620625]
[1720802739410,0.14742104,58213.0,58212.0,0.01442125]
[1720802739828,0.14742104,58215.0,58214.0,0.171779]
[1720802740028,0.15048457,58222.0,58215.0,0.0659]
[1720802740271,0.14742104,58219.0,58218.0,0.515304]
[1720802740545,0.14742104,58222.0,58221.0,0.171759]
[1720802740765,0.21070752,58222.0,58221.0,0.171759]
[1720802740966,0.21070752,58222.0,58221.0,0.01439904]
[1720802741785,0.21070752,58220.0,58219.0,0.171762]
[1720802742280,0.24245708,58220.0,58219.0,0.171762]
[1720802742420,0.24245708,58220.0,58218.0,0.486133]
[1720802742421,0.21070752,58219.0,58218.0,0.1426]
[1720802742628,0.22138633,58219.0,58218.0,0.1426]
[1720802742823,0.31099019,58219.0,58218.0,0.1426]
[1720802743105,0.21070752,58212.0,58211.0,0.002]
[1720802743311,0.21070752,58212.0,58178.0,0.05122478]
[1720802743312,0.1438,58186.0,58178.0,0.05122478]
[1720802743511,0.31070752,58172.0,58171.0,0.002]
[1720802743721,1.65832752,58172.0,58171.0,0.002]
[1720802743911,0.22137754,58172.0,58171.0,0.002]
[1720802744118,0.20217633,58185.0,58171.0,0.002]
[1720802744119,0.14742104,58176.0,58172.0,0.1416]
[1720802744308,0.14742104,58181.0,58175.0,0.171894]
[1720802744535,0.31028648,58184.0,58173.0,0.0034378]
[1720802744536,0.14742104,58184.0,58173.0,0.0034378]
[1720802744739,0.14742104,58189.0,58184.0,0.171867]
[1720802744949,0.14742104,58189.0,58180.0,0.34376]
[1720802744950,0.14742104,58200.0,58196.0,0.171832]
[1720802745124,0.14742104,58200.0,58196.0,0.171833]
[1720802745125,0.14742104,58197.0,58196.0,0.171833]
[1720802745339,0.14742104,58197.0,58185.0,0.24773693]
[1720802745340,0.14742104,58198.0,58192.0,0.343685]
[1720802745595,0.00306353,58197.0,58193.0,0.34368]
[1720802745801,0.14742104,58199.0,58194.0,0.343676]
[1720802745802,0.00306353,58198.0,58194.0,0.343676]
[1720802746007,0.00306353,58198.0,58195.0,0.171834]
[1720802746252,0.00306353,58200.0,58199.0,0.171824]
[1720802746664,0.06328648,58209.0,58194.0,0.1463]
[1720802746665,0.14742104,58199.0,58194.0,0.1463]
[1720802746874,0.247,58213.0,58194.0,0.1463]
[1720802746875,0.14742104,58197.0,58194.0,0.1463]
[1720802747081,0.14742104,58199.0,58195.0,0.171834]
[1720802747285,0.14742104,58201.0,58196.0,0.171832]
[1720802747489,0.14742104,58198.0,58194.0,0.318136]
[1720802747704,0.00306353,58200.0,58194.0,0.318138]
[1720802747705,0.14742104,58197.0,58194.0,0.318138]
[1720802747910,0.14742104,58198.0,58195.0,0.171835]
[1720802748098,0.14742104,58198.0,58196.0,0.171832]
[1720802748329,0.14742104,58198.0,58194.0,0.1463]
[1720802748701,0.14742104,58198.0,58195.0,0.171834]
[1720802748915,0.14742104,58197.0,58195.0,0.171834]
[1720802749142,0.14742104,58199.0,58198.0,0.171827]
[1720802749528,0.14742104,58203.0,58194.0,0.1463]
[1720802749730,0.374244,58217.0,58197.0,0.343658]
[1720802749731,0.14742104,58205.0,58197.0,0.343658]
[1720802749936,0.14742104,58202.0,58198.0,0.171825]
[1720802750108,0.14742104,58198.0,58194.0,0.1463]
[1720802750286,0.14742104,58198.0,58194.0,0.318138]
[1720802750522,0.14742104,58195.0,58194.0,0.318138]
[1720802750725,0.14742104,58198.0,58194.0,0.418138]
[1720802750930,0.14742104,58199.0,58194.0,0.318138]
[1720802751330,0.14742104,58199.0,58195.0,0.171835]
[1720802751532,0.00306353,58208.0,58196.0,0.171832]
[1720802751533,0.14742104,58201.0,58196.0,0.171832]
[1720802751758,0.14742104,58201.0,58195.0,0.171835]
[1720802751937,0.171801,58207.0,58195.0,0.171835]
[1720802751938,0.14742104,58198.0,58195.0,0.171835]
[1720802752133,0.06328648,58200.0,58194.0,0.1463]
[1720802752134,0.14742104,58197.0,58194.0,0.1463]
[1720802752544,0.14742104,58195.0,58194.0,0.1463]
[1720802753662,0.14742104,58195.0,58187.0,0.1485]
[1720802753663,0.14742104,58189.0,58187.0,0.1485]
[1720802753872,0.14742104,58182.0,58181.0,0.03442]
[1720802754088,0.21070752,58181.0,58180.0,0.0653]
[1720802754304,0.21070752,58181.0,58172.0,0.0653]
[1720802754305,0.14742104,58177.0,58172.0,0.0653]
[1720802754722,0.14742104,58173.0,58172.0,0.0653]
[1720802755112,0.21070752,58173.0,58172.0,0.0653]
[1720802755518,0.23929427,58173.0,58172.0,0.0653]
[1720802755718,0.23929547,58173.0,58172.0,0.0653]
[1720802757088,0.23929547,58173.0,58171.0,0.0852]
[1720802757089,0.38261152,58172.0,58171.0,0.002]
[1720802757291,1.13022752,58172.0,58171.0,0.01796936]
[1720802757502,1.19371811,58172.0,58171.0,0.01796936]
[1720802757671,0.90991011,58172.0,58171.0,0.002]
[1720802757880,0.8137,58172.0,58171.0,0.002]
[1720802758037,1.097508,58172.0,58171.0,0.002]
[1720802758257,0.40989773,58172.0,58171.0,0.002]
[1720802758471,0.75370573,58172.0,58171.0,0.002]
[1720802758692,0.72641952,58172.0,58171.0,0.002]
[1720802758922,0.75394856,58172.0,58171.0,0.002]
[1720802759482,0.41014056,58172.0,58171.0,0.002]
[1720802759852,0.17495008,58172.0,58171.0,0.002]
[1720802760054,0.14742104,58172.0,58171.0,0.002]
[1720802760282,0.403738,58184.0,58171.0,0.002]
[1720802760283,0.14742104,58176.0,58171.0,0.01796936]
[1720802760479,0.14742104,58177.0,58174.0,0.0636]
[1720802760656,0.14742104,58175.0,58174.0,0.0636]
[1720802761241,0.14742104,58177.0,58174.0,0.407393]
[1720802761433,0.343725,58187.0,58174.0,0.0636]
[1720802761434,0.14742104,58175.0,58174.0,0.0636]
[1720802761636,0.403724,58187.0,58174.0,0.407396]
[1720802761637,0.14742104,58177.0,58174.0,0.407396]
[1720802761846,0.14742104,58185.0,58183.0,0.171871]
[1720802762057,0.00306353,58186.0,58183.0,0.171871]
[1720802762058,0.14742104,58184.0,58183.0,0.171871]
[1720802762659,0.14742104,58185.0,58184.0,0.171868]
[1720802762861,0.00306353,58192.0,58184.0,0.171868]
[1720802762862,0.14742104,58187.0,58186.0,0.171862]
[1720802763011,0.14742104,58189.0,58188.0,0.171856]
[1720802763213,0.14742104,58188.0,58187.0,0.171859]
[1720802763398,0.14742104,58184.0,58183.0,0.343743]
[1720802763799,0.02055318,58195.0,58188.0,0.171856]
[1720802763800,0.14742104,58189.0,58188.0,0.171856]
[1720802763995,0.14742104,58191.0,58190.0,0.17185]
[1720802764201,0.14742104,58191.0,58188.0,0.171854]
[1720802764421,0.21070752,58186.0,58185.0,0.171865]
[1720802764644,0.02107075,58191.0,58181.0,0.0752]
[1720802764645,0.14742104,58183.0,58182.0,0.515621]
[1720802764843,0.14742104,58184.0,58183.0,0.515614]
[1720802765052,0.14742104,58183.0,58182.0,0.171873]
[1720802765273,0.14742104,58187.0,58181.0,0.0752]
[1720802765476,0.14742104,58187.0,58186.0,0.171862]
[1720802765686,0.14742104,58187.0,58186.0,0.515587]
[1720802765883,0.21070752,58182.0,58181.0,0.0752]
[1720802766092,0.14742104,58182.0,58181.0,0.0752]
[1720802766312,0.02107075,58186.0,58183.0,0.343743]
[1720802766313,0.14742104,58184.0,58183.0,0.343743]
[1720802766559,0.14742104,58184.0,58183.0,0.859357]
[1720802766724,0.14742104,58187.0,58186.0,0.171862]
[1720802766931,0.21070752,58187.0,58186.0,0.171862]
[1720802767128,0.14742104,58185.0,58182.0,0.171872]
[1720802767325,0.14742104,58185.0,58178.0,0.343769]
[1720802767326,0.14742104,58181.0,58180.0,0.8594]
[1720802767479,0.00306353,58193.0,58181.0,0.343754]
[1720802767480,0.14742104,58183.0,58181.0,0.343754]
[1720802767679,0.14742104,58184.0,58181.0,0.343754]
[1720802767887,0.14742104,58181.0,58180.0,0.515638]
[1720802768088,0.00306353,58191.0,58180.0,0.515638]
[1720802768089,0.14742104,58182.0,58181.0,0.515631]
[1720802768301,0.14742104,58184.0,58183.0,0.343743]
[1720802768504,0.14742104,58189.0,58183.0,0.34374]
[1720802768706,0.14742104,58189.0,58188.0,0.171856]
[1720802769111,0.343655,58198.0,58186.0,0.515586]
[1720802769112,0.14742104,58187.0,58186.0,0.515586]
[1720802769348,0.17489753,58196.0,58187.0,0.171859]
[1720802769349,0.14742104,58189.0,58187.0,0.171859]
[1720802770316,0.14742104,58188.0,58187.0,0.171857]
[1720802770541,0.21070752,58188.0,58186.0,0.011]
[1720802770766,0.21070752,58188.0,58173.0,0.443797]
[1720802770767,0.14742104,58184.0,58183.0,0.343743]
[1720802770979,0.14742104,58187.0,58186.0,0.171862]
[1720802771187,0.002,58189.0,58188.0,0.171856]
[1720802771438,0.001,58189.0,58188.0,0.859282]
[1720802771849,0.001,58189.0,58188.0,1.202995]
[1720802772058,0.001,58189.0,58188.0,1.28006486]
[1720802772482,0.002,58189.0,58188.0,1.28006486]
[1720802772692,0.002,58189.0,58188.0,1.35816486]
[1720802773126,0.001,58189.0,58188.0,1.35816486]
[1720802773761,0.14742104,58193.0,58190.0,0.343701]
[1720802773985,0.21070752,58193.0,58192.0,0.515533]
[1720802774400,0.21070752,58193.0,58192.0,0.53148765]
[1720802774618,0.14742104,58193.0,58192.0,0.53148765]
[1720802775013,0.14842104,58193.0,58192.0,0.53148765]
[1720802775361,0.14742104,58193.0,58192.0,0.53148765]
[1720802775961,0.21070752,58193.0,58192.0,0.01595465]
[1720802776165,0.23947334,58193.0,58192.0,0.01595465]
[1720802776430,0.23947334,58193.0,58190.0,0.01]
[1720802776431,0.14742104,58191.0,58190.0,0.01]
[1720802776579,0.17518686,58191.0,58189.0,0.171851]
[1720802776768,0.17518686,58191.0,58184.0,0.068888]
[1720802776769,0.14742104,58191.0,58190.0,0.01595871]
[1720802776978,0.14742104,58192.0,58191.0,0.171845]
[1720802777190,0.17497342,58192.0,58191.0,0.171845]
[1720802777401,0.02755238,58192.0,58191.0,0.171847]
[1720802777595,0.02755238,58192.0,58191.0,0.859237]
[1720802777821,0.14742104,58194.0,58192.0,0.343689]
[1720802778020,0.02880569,58193.0,58192.0,0.598633]
[1720802778704,0.001,58193.0,58192.0,1.286011]
[1720802779323,0.14742104,58198.0,58197.0,0.85915]
[1720802779613,0.17537878,58198.0,58197.0,0.85915]
[1720802779850,0.17537878,58198.0,58195.0,0.515502]
[1720802779851,0.14742104,58196.0,58195.0,0.515502]
[1720802780049,0.02795774,58196.0,58195.0,0.514504]
[1720802780238,0.14742104,58197.0,58196.0,0.515499]
[1720802780453,0.17515967,58197.0,58196.0,0.514499]
[1720802780727,0.21070752,58196.0,58195.0,0.171835]
[1720802780979,0.23844615,58196.0,58195.0,0.171835]
[1720802781191,0.23844615,58196.0,58194.0,0.171838]
[1720802781394,0.21070752,58194.0,58193.0,0.171839]
[1720802781619,0.02773863,58194.0,58193.0,0.859205]
[1720802782048,0.14742104,58198.0,58197.0,0.17183]
[1720802782257,0.02712196,58198.0,58197.0,0.17183]
[1720802782456,0.00306353,58204.0,58194.0,0.0034364]
[1720802782457,0.02712629,58199.0,58194.0,0.0034364]
[1720802782663,0.14742104,58201.0,58196.0,0.005]
[1720802782876,0.14742104,58198.0,58197.0,0.17183]
[1720802783094,0.17521081,58198.0,58197.0,0.17183]
[1720802783308,0.23849729,58198.0,58197.0,0.18694495]
[1720802783543,0.14742104,58198.0,58197.0,0.18594495]
[1720802783749,0.23815096,58198.0,58197.0,0.18794495]
[1720802783929,0.23815096,58198.0,58197.0,0.01611495]
[1720802784136,0.23815096,58198.0,58197.0,0.02011495]
[1720802784137,0.23815211,58198.0,58197.0,0.02011495]
[1720802784365,0.23815211,58198.0,58197.0,0.02411495]
[1720802784758,0.17486563,58198.0,58197.0,0.02411495]
[1720802784970,0.17486563,58198.0,58197.0,0.19594495]
[1720802785117,0.17486563,58198.0,58197.0,0.02411495]
[1720802785319,0.23815211,58198.0,58197.0,0.02411495]
[1720802785579,0.23815211,58198.0,58197.0,0.19594495]
[1720802786196,0.23815211,58198.0,58197.0,0.02411495]
[1720802786723,0.21070752,58198.0,58197.0,0.02411495]
[1720802786931,0.23802251,58198.0,58197.0,0.02411495]
[1720802787145,0.24108604,58198.0,58197.0,0.008]
[1720802787358,0.23802251,58198.0,58197.0,0.008]
[1720802787563,0.23802251,58198.0,58197.0,0.02411487]
[1720802787766,0.23802251,58198.0,58197.0,0.008]
[1720802787977,0.23802251,58198.0,58197.0,0.02411487]
[1720802788185,0.23802251,58198.0,58197.0,0.008]
[1720802788392,0.23802251,58198.0,58197.0,0.02411487]
[1720802788625,0.23802251,58198.0,58197.0,0.008]
[1720802789304,0.23802251,58198.0,58197.0,0.02411487]
[1720802789989,0.21070752,58198.0,58197.0,0.02411487]
[1720802790182,0.23888423,58198.0,58197.0,0.02411487]
[1720802790388,0.28026051,58198.0,58197.0,0.02411487]
[1720802791868,0.23888423,58198.0,58197.0,0.02411487]
[1720802793259,0.23875716,58198.0,58197.0,0.02411487]
[1720802793533,0.30610518,58198.0,58197.0,0.02411487]
[1720802793905,0.30599556,58198.0,58197.0,0.02411487]
[1720802794107,0.23870125,58198.0,58197.0,0.02411487]
[1720802794343,0.26560629,58198.0,58197.0,0.02411487]
[1720802794972,0.20231981,58198.0,58197.0,0.02411487]
[1720802795174,0.17541477,58198.0,58197.0,0.02411487]
[1720802795383,0.23870125,58198.0,58197.0,0.02411487]
[1720802795934,0.28517637,58198.0,58197.0,0.02411487]
[1720802796212,0.56469382,58198.0,58197.0,0.02411487]
[1720802796416,1.04894782,58198.0,58197.0,0.02411487]
[1720802796590,1.04894782,58198.0,58197.0,0.008]
[1720802796591,1.04892479,58198.0,58197.0,0.008]
[1720802797027,0.47344379,58198.0,58197.0,0.008]
[1720802797207,0.47650732,58198.0,58197.0,0.008]
[1720802798188,0.53650732,58198.0,58197.0,0.008]
[1720802798383,0.70833432,58198.0,58197.0,0.008]
[1720802798602,0.70527079,58198.0,58197.0,0.008]
[1720802799192,1.4444431,58198.0,58197.0,0.008]
[1720802799398,1.52120161,58198.0,58197.0,0.008]
[1720802799533,1.4444431,58198.0,58197.0,0.008]
[1720802799736,1.35227567,58198.0,58197.0,0.004]
[1720802799982,1.54587392,58198.0,58197.0,0.004]
[1720802800182,1.54281039,58198.0,58197.0,0.003]
[1720802800505,1.78405297,58198.0,58197.0,0.006]
[1720802800628,1.98405297,58198.0,58197.0,0.006]
[1720802800826,1.78405297,58198.0,58197.0,0.006]
[1720802801424,1.73218866,58198.0,58197.0,0.003]
[1720802801674,1.73218866,58198.0,58197.0,0.006]
[1720802801675,2.03218866,58198.0,58197.0,0.006]
[1720802801881,2.47584266,58198.0,58197.0,0.006]
[1720802802208,3.27083406,58198.0,58197.0,0.003]
[1720802802459,0.21070752,58172.0,58168.0,0.4742]
[1720802802631,0.23659599,58172.0,58165.0,0.068911]
[1720802802786,0.23659599,58172.0,58171.0,0.01818555]
[1720802802787,0.3030166,58172.0,58171.0,0.01818555]
[1720802803128,0.33111805,58172.0,58171.0,0.002]
[1720802803539,0.26469893,58172.0,58171.0,0.002]
[1720802803759,0.33147958,58172.0,58171.0,0.005]
[1720802804166,0.31591521,58172.0,58171.0,0.005]
[1720802804576,0.17449476,58172.0,58171.0,0.005]
[1720802804780,0.17449476,58172.0,58171.0,0.53690455]
[1720802805008,0.17449476,58172.0,58171.0,0.520719]
[1720802805206,0.17449476,58172.0,58171.0,0.53690455]
[1720802805544,0.17449476,58172.0,58171.0,0.53390455]
[1720802805758,0.02707372,58172.0,58171.0,1.36573055]
[1720802806018,0.05121628,58181.0,58178.0,0.343772]
[1720802806216,0.21070752,58179.0,58175.0,0.34279]
[1720802806429,0.14742104,58177.0,58176.0,0.171892]
[1720802806786,0.06328648,58179.0,58173.0,0.343799]
[1720802806787,0.14742104,58175.0,58174.0,0.171897]
[1720802806989,0.23815622,58175.0,58174.0,0.171897]
[1720802807161,0.21070752,58174.0,58173.0,0.170899]
[1720802807392,0.21070752,58174.0,58173.0,0.514701]
[1720802807393,0.23815622,58174.0,58173.0,0.514701]
[1720802807624,0.23815622,58174.0,58173.0,0.170899]
[1720802807841,0.17815622,58174.0,58173.0,0.514701]
[1720802808050,0.0274487,58174.0,58173.0,0.514701]
[1720802808459,0.14742104,58176.0,58172.0,0.343806]
[1720802808460,0.17486708,58175.0,58174.0,0.343796]
[1720802808612,0.17486709,58175.0,58174.0,0.515694]
[1720802809000,0.17586709,58175.0,58174.0,0.517694]
[1720802809205,0.001,58175.0,58174.0,0.86049]
[1720802809556,0.14842104,58175.0,58174.0,0.516694]
[1720802809749,0.17554418,58175.0,58174.0,0.516694]
[1720802809902,0.02912314,58175.0,58174.0,0.517694]
[1720802810322,0.02912314,58175.0,58174.0,0.86149]
[1720802811048,0.02912314,58175.0,58174.0,1.205286]
[1720802811696,0.002,58175.0,58174.0,1.265786]
[1720802812037,0.002,58175.0,58174.0,1.346186]
[1720802813095,0.002,58175.0,58174.0,1.689982]
[1720802813316,0.001,58175.0,58174.0,1.688982]
[1720802813637,0.001,58175.0,58174.0,1.696982]
[1720802813814,0.001,58175.0,58174.0,1.93956096]
[1720802814019,0.002,58175.0,58174.0,1.93956096]
[1720802814370,0.001,58175.0,58174.0,1.93956096]
[1720802814571,0.001,58175.0,58174.0,1.886982]
[1720802814795,0.001,58175.0,58174.0,2.29088966]
[1720802814994,0.14742104,58194.0,58174.0,2.29088966]
[1720802814995,0.00306353,58192.0,58186.0,0.1442]
[1720802815217,0.06328648,58196.0,58187.0,0.00343677]
[1720802815218,0.14742104,58195.0,58187.0,0.00343677]
[1720802815419,0.02921867,58194.0,58193.0,0.515524]
[1720802815623,0.02921867,58194.0,58193.0,0.859207]
[1720802815958,0.14742104,58194.0,58193.0,0.87534359]
[1720802816124,0.17621367,58194.0,58193.0,0.87534359]
[1720802816331,0.14742104,58194.0,58193.0,0.87534359]
[1720802816644,0.17621381,58194.0,58193.0,0.88034359]
[1720802817353,0.17621381,58194.0,58193.0,0.88434359]
[1720802818709,0.26345032,58194.0,58193.0,0.02513659]
[1720802818918,0.23936851,58194.0,58193.0,0.02513659]
[1720802819138,0.21070752,58194.0,58193.0,0.02513659]
[1720802819343,0.23924192,58194.0,58193.0,0.02513659]
[1720802819562,0.29924192,58194.0,58193.0,0.02513659]
[1720802819767,0.61308092,58194.0,58193.0,0.009]
[1720802819974,0.71466797,58194.0,58193.0,0.009]
[1720802820171,0.74027662,58194.0,58193.0,0.009]
[1720802820385,0.45806786,58194.0,58193.0,0.005]
[1720802820631,0.14742104,58188.0,58187.0,0.343718]
[1720802820941,0.17595544,58188.0,58187.0,0.515577]
[1720802821159,0.0285344,58188.0,58187.0,0.53172251]
[1720802821294,0.0285344,58188.0,58187.0,0.87544151]
[1720802821778,0.21070752,58191.0,58190.0,0.515551]
[1720802821990,0.23870343,58191.0,58190.0,0.17185]
[1720802822186,0.23870343,58191.0,58187.0,0.35986351]
[1720802822187,0.21070752,58188.0,58187.0,0.171858]
[1720802822416,0.23870343,58188.0,58187.0,0.171858]
[1720802822620,0.14742104,58181.0,58180.0,0.35437955]
[1720802822798,0.14742104,58184.0,58183.0,0.171871]
[1720802823000,0.12348648,58186.0,58184.0,0.515605]
[1720802823001,0.14742104,58185.0,58184.0,0.515605]
[1720802823178,0.17543058,58185.0,58184.0,0.515605]
[1720802823772,0.02800954,58185.0,58184.0,0.859342]
[1720802823971,0.02800954,58185.0,58184.0,1.263079]
[1720802824205,0.02906716,58185.0,58184.0,0.575605]
[1720802824444,0.002,58188.0,58187.0,0.171859]
[1720802824555,0.03107304,58188.0,58187.0,0.859297]
[1720802824955,0.03007541,58188.0,58187.0,0.859297]
[1720802825187,0.03007541,58188.0,58187.0,0.858297]
[1720802825390,0.02994331,58188.0,58187.0,0.858297]
[1720802825822,0.17736435,58188.0,58187.0,0.858297]
[1720802826029,0.03094331,58188.0,58187.0,0.867297]
[1720802826690,0.02994331,58188.0,58187.0,0.858297]
[1720802827112,0.03094331,58188.0,58187.0,0.866297]
[1720802827790,0.001,58188.0,58187.0,0.866297]
[1720802828207,0.02988456,58188.0,58187.0,0.866297]
[1720802828420,0.02988439,58188.0,58187.0,0.866297]
[1720802829806,0.02988439,58188.0,58187.0,1.210016]
[1720802830440,3.02988439,58188.0,58187.0,1.210016]
[1720802830580,3.03088439,58188.0,58187.0,1.219016]
[1720802831005,3.002,58188.0,58187.0,1.637835]
[1720802831819,3.002,58188.0,58187.0,1.65239093]
[1720802833938,3.0315416,58188.0,58187.0,1.65239093]
[1720802834158,3.002,58188.0,58187.0,1.65239093]
[1720802834593,3.03153693,58188.0,58187.0,1.65239093]
[1720802834755,3.03153772,58188.0,58187.0,1.65239093]
[1720802835167,3.03153772,58188.0,58187.0,1.75239093]
[1720802835168,3.002,58188.0,58187.0,1.75239093]
[1720802835398,3.002,58188.0,58187.0,1.78684093]
[1720802835833,3.002,58188.0,58187.0,1.68684093]
[1720802836032,3.001,58188.0,58187.0,1.77884093]
[1720802836240,3.001,58188.0,58187.0,1.82255993]
[1720802836490,3.001,58188.0,58187.0,1.82355993]
[1720802836704,3.001,58188.0,58187.0,1.83755993]
[1720802836914,3.0,58188.0,58187.0,1.82755993]
[1720802837269,3.001,58188.0,58187.0,1.83755993]
[1720802838369,3.001,58188.0,58187.0,1.93755993]
[1720802839010,3.001,58188.0,58187.0,2.13755993]
[1720802839602,3.001,58188.0,58187.0,2.19013889]
[1720802842936,3.001,58188.0,58187.0,1.66245993]
[1720802843081,3.0316952,58188.0,58187.0,1.62800993]
[1720802843282,3.0316952,58188.0,58187.0,1.28429093]
[1720802843696,3.03170073,58188.0,58187.0,1.28429093]
[1720802844135,3.03070073,58188.0,58187.0,1.27429093]
[1720802844533,3.14742104,58188.0,58187.0,0.91657193]
[1720802844877,3.14742104,58188.0,58187.0,0.93057193]
[1720802844878,3.17859292,58188.0,58187.0,0.93057193]
[1720802845085,3.14742104,58188.0,58187.0,0.93057193]
[1720802845284,3.1787192,58188.0,58187.0,0.93057193]
[1720802845470,3.03129816,58188.0,58187.0,1.27429093]
[1720802846015,3.03229816,58188.0,58187.0,1.28829093]
[1720802847821,3.001,58188.0,58187.0,1.28829093]
[1720802848020,3.03230716,58188.0,58187.0,1.63200993]
[1720802854143,3.03230716,58188.0,58187.0,1.28829093]
[1720802854339,3.1797282,58188.0,58187.0,1.28829093]
[1720802854928,3.35480752,58188.0,58187.0,0.04255593]
[1720802855123,3.35480752,58188.0,58187.0,0.028]
[1720802855124,3.43692215,58188.0,58187.0,0.028]
[1720802855327,3.56940609,58188.0,58187.0,0.028]
[1720802855532,3.59502712,58188.0,58187.0,0.028]
[1720802855731,3.59226947,58188.0,58187.0,0.014]
[1720802856144,3.69579043,58188.0,58187.0,0.028]
[1720802856747,3.72037461,58188.0,58187.0,0.014]
[1720802856947,3.72137461,58188.0,58187.0,0.022]
[1720802857093,3.59326947,58188.0,58187.0,0.022]
[1720802857500,3.48144265,58188.0,58182.0,0.171874]
[1720802857703,0.26202403,58183.0,58182.0,0.171874]
[1720802857925,0.25219941,58183.0,58182.0,0.171874]
[1720802858626,0.30351537,58183.0,58182.0,0.171874]
[1720802858827,0.25219941,58183.0,58182.0,0.171874]
[1720802859043,0.30351448,58183.0,58182.0,0.171874]
[1720802859236,0.21070752,58182.0,58181.0,0.171876]
[1720802859370,0.21070752,58180.0,58179.0,0.01604186]
[1720802859570,0.21070752,58180.0,58175.0,0.343785]
[1720802859571,0.14742104,58176.0,58175.0,0.343785]
[1720802859777,0.14742104,58176.0,58172.0,0.4742]
[1720802859778,0.21070752,58174.0,58173.0,0.068902]
[1720802859978,0.25219941,58174.0,58173.0,0.515703]
[1720802861087,0.25219941,58174.0,58171.0,0.002]
[1720802861088,0.21070752,58172.0,58171.0,0.002]
[1720802861304,0.25219941,58172.0,58171.0,0.002]
[1720802862005,0.30049719,58172.0,58171.0,0.01659894]
[1720802862207,0.30049719,58172.0,58171.0,0.002]
[1720802862488,0.31399941,58172.0,58171.0,0.002]
[1720802862784,0.25071293,58172.0,58171.0,0.002]
[1720802862996,0.25071293,58172.0,58171.0,0.01659894]
[1720802863225,0.25071293,58172.0,58171.0,0.03060751]
[1720802863226,0.31499941,58172.0,58171.0,0.03060751]
[1720802863601,0.40319626,58172.0,58171.0,0.016]
[1720802863816,0.57510026,58172.0,58171.0,0.03]
[1720802864032,0.65040026,58172.0,58171.0,0.03]
[1720802864176,0.70164248,58172.0,58171.0,0.03]
[1720802864388,0.90603891,58172.0,58171.0,0.03]
[1720802864706,0.98288949,58172.0,58171.0,0.03]
[1720802864909,1.38669749,58172.0,58171.0,0.03]
[1720802865154,1.24884691,58172.0,58171.0,0.002]
[1720802865296,1.38563551,58172.0,58171.0,0.026]
[1720802865538,1.38663551,58172.0,58171.0,0.026]
[1720802866081,1.53125833,58172.0,58171.0,0.026]
[1720802866399,2.30585647,58172.0,58171.0,0.026]
[1720802866629,2.30569907,58172.0,58171.0,0.026]
[1720802867010,2.07546167,58172.0,58171.0,0.026]
[1720802867238,2.07546167,58172.0,58171.0,0.014]
[1720802867239,2.13546167,58172.0,58171.0,0.014]
[1720802867441,2.00593722,58172.0,58171.0,0.014]
[1720802867624,2.00593722,58172.0,58171.0,0.016]
[1720802867820,2.00299184,58172.0,58171.0,0.014]
[1720802868230,1.94299184,58172.0,58171.0,0.002]
[1720802868433,2.00299184,58172.0,58171.0,0.005]
[1720802868650,1.91607115,58172.0,58171.0,0.005]
[1720802868944,1.40194925,58172.0,58171.0,0.002]
[1720802869142,1.44551055,58172.0,58171.0,0.002]
[1720802869545,1.50551055,58172.0,58171.0,0.002]
[1720802869720,1.44551055,58172.0,58171.0,0.002]
[1720802869927,1.50551055,58172.0,58171.0,0.002]
[1720802870134,1.13610363,58172.0,58171.0,0.002]
[1720802870466,1.09254233,58172.0,58171.0,0.002]
[1720802870690,1.04129951,58172.0,58171.0,0.002]
[1720802870868,0.96352705,58172.0,58171.0,0.002]
[1720802871646,0.38781505,58172.0,58171.0,0.002]
[1720802872139,0.31251505,58172.0,58171.0,0.002]
[1720802872762,0.18742857,58172.0,58171.0,0.002]
[1720802873181,0.25071505,58172.0,58171.0,0.002]
[1720802873377,0.25071505,58172.0,58171.0,0.01863059]
[1720802873628,0.24971505,58172.0,58171.0,0.004]
[1720802873803,0.21070752,58172.0,58171.0,0.01863059]
[1720802874107,0.03994081,58172.0,58171.0,0.53434959]
[1720802874374,0.14742104,58181.0,58174.0,0.343796]
[1720802874576,0.14742104,58181.0,58180.0,0.51564]
[1720802874780,0.21070752,58184.0,58183.0,0.515614]
[1720802874982,0.25003324,58184.0,58183.0,0.515614]
[1720802875156,0.25003324,58184.0,58183.0,0.53165775]
[1720802875775,0.25003324,58184.0,58183.0,0.18791475]
[1720802876199,0.03932572,58184.0,58183.0,0.94110075]
[1720802876399,0.00306353,58187.0,58186.0,0.171862]
[1720802876613,0.04219388,58187.0,58186.0,0.859312]